fUST/lending_fUST_20250926
["ID","MTS","AMOUNT","RATE_DAILY","PERIOD"]
[387716617,1758822649834,-974.98,0.00021799,2]
[387716619,1758822649843,-151.0,0.00021799,2]
[387716621,1758822649852,-151.0,0.00021799,2]
[387716623,1758822649862,-151.0,0.00021799,2]
[387716625,1758822649871,-224.664565,0.00021799,2]
[387716627,1758822649881,-480.0,0.00021799,2]
[387716629,1758822649895,-480.0,0.00021804,2]
[387716631,1758822649904,-480.0,0.00021804,2]
[387716633,1758822649913,-1063.78,0.00021806,2]
[387716635,1758822649922,-480.0,0.00021807,2]
[387716637,1758822649932,-480.0,0.00021807,2]
[387716639,1758822649941,-151.0,0.00021809,2]
[387716641,1758822649950,-151.0,0.00021809,2]
[387716643,1758822649960,-151.0,0.00021809,2]
[387716645,1758822649969,-151.0,0.00021809,2]
[387716647,1758822649980,-1387.82,0.0002181,2]
[387716649,1758822649989,-480.0,0.0002181,2]
[387716651,1758822649999,-480.0,0.0002181,2]
[387716653,1758822650010,-3080.89,0.0002181,2]
[387716655,1758822650020,-1026.02032312,0.00021908,2]
[387716656,1758822650030,-1500.0,0.0002191,2]
[387716659,1758822650040,-449.93720386,0.0002191,2]
[387716661,1758822650050,-1500.0,0.0002191,2]
[387716663,1758822650059,-1500.0,0.0002191,2]
[387716665,1758822650068,-366.21165729,0.00021917,2]
[387716667,1758822650078,-151.0,0.00021917,2]
[387716669,1758822650087,-151.0,0.00021917,2]
[387716671,1758822650096,-151.0,0.00021917,2]
[387716672,1758822650106,-151.0,0.00021917,2]
[387716675,1758822650115,-151.0,0.00021917,2]
[387716682,1758822650125,-500.0,0.00021917,2]
[387716684,1758822650184,-500.0,0.00021917,2]
[387716686,1758822650194,-500.0,0.00021917,2]
[387716688,1758822650203,-500.0,0.00021917,2]
[387716690,1758822650213,-624.38975041,0.00021917,2]
[387716692,1758822650222,-480.0,0.00021917,2]
[387716694,1758822650233,-480.0,0.00021917,2]
[387716695,1758822650243,-480.0,0.00021917,2]
[387716696,1758822650252,-480.0,0.00021917,2]
[387716697,1758822650262,-480.0,0.00021917,2]
[387716698,1758822650272,-151.0,0.00021918,2]
[387716699,1758822650282,-151.0,0.00021918,2]
[387716700,1758822650291,-151.0,0.00021918,2]
[387716701,1758822650300,-151.0,0.00021918,2]
[387716702,1758822650310,-150.0,0.00021918,2]
[387716703,1758822650319,-360.0,0.00021922,2]
[387716704,1758822650327,-3853.90407692,0.00022026,2]
[387716705,1758822650337,-740.65,0.00022068,2]
[387716706,1758822650348,-480.0,0.0002207,2]
[387716707,1758822650357,-626.16,0.0002207,2]
[387716708,1758822650366,-1245.66,0.0002207,2]
[387716709,1758822650375,-480.0,0.0002207,2]
[387716710,1758822650385,-480.0,0.0002207,2]
[387716711,1758822650394,-480.0,0.0002207,2]
[387716712,1758822650403,-480.0,0.0002207,2]
[387716713,1758822650412,-480.0,0.0002207,2]
[387716714,1758822650421,-480.0,0.0002207,2]
[387716715,1758822650431,-480.0,0.00022072,2]
[387716716,1758822650440,-480.0,0.00022072,2]
[387716717,1758822650450,-480.0,0.00022072,2]
[387716718,1758822650459,-1025.55,0.00022072,2]
[387716719,1758822650468,-325.63010335,0.00022072,2]
[387716720,1758822650478,-506.86,0.00022072,2]
[387716721,1758822650487,-480.0,0.00022072,2]
[387716722,1758822650497,-480.0,0.00022072,2]
[387716723,1758822650506,-480.0,0.00022072,2]
[387716724,1758822650516,-1034.09,0.00022072,2]
[387716725,1758822650525,-520.37,0.00022073,2]
[387716726,1758822650535,-974.98,0.00022073,2]
[387716727,1758822650544,-480.0,0.00022073,2]
[387716728,1758822650553,-480.0,0.00022078,2]
[387716729,1758822650562,-480.0,0.00022078,2]
[387716730,1758822650572,-1063.78,0.0002208,2]
[387716731,1758822650581,-480.0,0.00022081,2]
[387716732,1758822650590,-480.0,0.00022081,2]
[387716733,1758822650612,-1387.82,0.00022084,2]
[387716734,1758822650629,-480.0,0.00022084,2]
[387716735,1758822650648,-151.0,0.00022084,7]
[387716736,1758822650667,-480.0,0.00022084,2]
[387716737,1758822650686,-3080.89,0.00022084,2]
[387716738,1758822650702,-156.93,0.00022104,2]
[387716739,1758822650720,-740.65,0.00022342,2]
[387716740,1758822650734,-151.0,0.00022342,7]
[387716741,1758822650749,-151.0,0.00022342,7]
[387716742,1758822650768,-151.0,0.00022342,7]
[387716743,1758822650787,-151.0,0.00022342,7]
[387716744,1758822650804,-151.0,0.00022342,7]
[387716745,1758822650818,-151.0,0.00022342,7]
[387716746,1758822650838,-480.0,0.00022344,2]
[387716747,1758822650852,-626.16,0.00022344,2]
[387716749,1758822650867,-1245.66,0.00022344,2]
[387716752,1758822650882,-480.0,0.00022344,2]
[387716754,1758822650898,-480.0,0.00022344,2]
[387716755,1758822650914,-480.0,0.00022344,2]
[387716756,1758822650929,-480.0,0.00022344,2]
[387716757,1758822650942,-480.0,0.00022344,2]
[387716758,1758822650957,-480.0,0.00022344,2]
[387716759,1758822650971,-480.0,0.00022346,2]
[387716760,1758822650985,-480.0,0.00022346,2]
[387716761,1758822650999,-480.0,0.00022346,2]
[387716762,1758822651014,-1025.55,0.00022346,2]
[387716763,1758822651028,-506.86,0.00022346,2]
[387716764,1758822651046,-480.0,0.00022346,2]
[387716765,1758822651063,-375.89161436,0.00022346,2]
[387716766,1758822651079,-480.0,0.00022346,2]
[387716767,1758822651094,-1034.09,0.00022346,2]
[387716768,1758822651109,-520.37,0.00022347,2]
[387716769,1758822651124,-974.98,0.00022347,2]
[387716770,1758822651139,-480.0,0.00022352,2]
[387716771,1758822651154,-480.0,0.00022352,2]
[387716772,1758822651168,-1063.78,0.00022354,2]
[387716773,1758822651182,-480.0,0.00022355,2]
[387716774,1758822651197,-480.0,0.00022355,2]
[387716775,1758822651206,-495.838101,0.00022355,7]
[387716776,1758822651216,-151.0,0.00022355,7]
[387716777,1758822651228,-182.667147,0.00022355,7]
[387716778,1758822651238,-495.838101,0.00022355,7]
[387716779,1758822651248,-495.838101,0.00022355,7]
[387716780,1758822651259,-495.838101,0.00022355,7]
[387716781,1758822651373,-409.663832,0.00022355,7]
[387716782,1758822651383,-409.663832,0.00022355,7]
[387716783,1758822651392,-409.663832,0.00022355,7]
[387716784,1758822651403,-409.663832,0.00022355,7]
[387716785,1758822651413,-151.0,0.00022355,7]
[387716786,1758822651423,-151.0,0.00022355,7]
[387716787,1758822651433,-168.0,0.00022357,2]
[387716788,1758822651442,-1387.82,0.00022358,2]
[387716789,1758822651452,-480.0,0.00022358,2]
[387716790,1758822651461,-480.0,0.00022358,2]
[387716791,1758822651470,-3080.89,0.00022358,2]
[387716792,1758822651482,-160.0,0.00022392,2]
[387716793,1758822651491,-160.0,0.00022392,2]
[387716794,1758822651501,-160.0,0.00022392,2]
[387716795,1758822651510,-233.66602051,0.00022392,2]
[387716796,1758822651520,-160.0,0.00022392,2]
[387716797,1758822651529,-407.22053807,0.00022392,2]
[387716798,1758822651538,-160.0,0.00022392,2]
[387716799,1758822651547,-150.0,0.00022428,2]
[387716800,1758822651557,-203.0,0.00022447,2]
[387716801,1758822651567,-623.56628512,0.00022458,2]
[387716802,1758822651577,-503.24530109,0.00022458,2]
[387716803,1758822651586,-2000.0,0.00022458,2]
[387716805,1758822651596,-300.0,0.00022466,2]
[387716807,1758822651605,-460.0,0.0002247,2]
[387716808,1758822651614,-667.02634429,0.00022535,2]
[387716809,1758822651623,-740.65,0.00022616,2]
[387716810,1758822651632,-480.0,0.00022618,2]
[387716811,1758822651641,-626.16,0.00022618,2]
[387716812,1758822651651,-1245.66,0.00022618,2]
[387716813,1758822651660,-480.0,0.00022618,2]
[387716814,1758822651669,-480.0,0.00022618,2]
[387716815,1758822651680,-480.0,0.00022618,2]
[387716816,1758822651689,-480.0,0.00022618,2]
[387716817,1758822651698,-480.0,0.00022618,2]
[387716818,1758822651708,-480.0,0.00022618,2]
[387716819,1758822651717,-151.0,0.0002262,7]
[387716820,1758822651728,-151.0,0.0002262,7]
[387716822,1758822651738,-151.0,0.0002262,7]
[387716824,1758822651747,-151.0,0.0002262,7]
[387716826,1758822651756,-152.223131,0.0002262,7]
[387716827,1758822651765,-580.03081962,0.0002262,2]
[387716829,1758822651775,-586.41229623,0.0002262,2]
[387716831,1758822651785,-480.0,0.0002262,2]
[387716832,1758822651794,-1025.55,0.0002262,2]
[387716833,1758822651803,-506.86,0.0002262,2]
[387716834,1758822651813,-480.0,0.0002262,2]
[387716835,1758822651823,-480.0,0.0002262,2]
[387716837,1758822651833,-1034.09,0.0002262,2]
[387716838,1758822651843,-520.37,0.00022621,2]
[387716840,1758822651853,-974.98,0.00022621,2]
[387716841,1758822651862,-151.0,0.00022621,7]
[387716842,1758822651872,-192.613124,0.00022621,7]
[387716843,1758822651882,-192.613124,0.00022621,7]
[387716844,1758822651895,-192.613124,0.00022621,7]
[387716845,1758822651904,-192.613124,0.00022621,7]
[387716846,1758822651914,-480.0,0.00022626,2]
[387716847,1758822651924,-480.0,0.00022626,2]
[387716848,1758822651933,-1063.78,0.00022628,2]
[387716849,1758822651943,-480.0,0.00022629,2]
[387716850,1758822651953,-480.0,0.00022629,2]
[387716851,1758822651962,-1387.82,0.00022632,2]
[387716852,1758822651975,-480.0,0.00022632,2]
[387716853,1758822651985,-480.0,0.00022632,2]
[387716854,1758822651994,-3080.89,0.00022632,2]
[387716855,1758822652004,-203.0,0.00022681,2]
[387716856,1758822652013,-203.0,0.00022717,2]
[387716857,1758822652023,-203.0,0.0002279,2]
[387716858,1758822652032,-203.0,0.00022793,2]
[387716859,1758822652042,-1026.02032312,0.00022794,2]
[387716860,1758822652051,-203.0,0.000228,2]
[387716861,1758822652061,-203.0,0.00022844,2]
[387716862,1758822652071,-500.0,0.0002287,2]
[387716863,1758822652080,-740.65,0.0002289,2]
[387716864,1758822652089,-480.0,0.00022892,2]
[387716865,1758822652099,-626.16,0.00022892,2]
[387716866,1758822652108,-1245.66,0.00022892,2]
[387716867,1758822652117,-330.95765582,0.00022892,2]
[387716868,1758822652127,-480.0,0.00022892,2]
[387716869,1758822652136,-480.0,0.00022892,2]
[387716870,1758822652146,-480.0,0.00022892,2]
[387716871,1758822652156,-261.1099704,0.00022892,2]
[387716872,1758822652166,-480.0,0.00022892,2]
[387716873,1758822652175,-393.67306479,0.00022894,2]
[387716874,1758822652185,-1025.55,0.00022894,2]
[387716875,1758822652194,-506.86,0.00022894,2]
[387716876,1758822652205,-480.0,0.00022894,2]
[387716877,1758822652215,-480.0,0.00022894,2]
[387716878,1758822652228,-1034.09,0.00022894,2]
[387716879,1758822652238,-520.37,0.00022895,2]
[387716880,1758822652248,-974.98,0.00022895,2]
[387716881,1758822652258,-480.0,0.000229,2]
[387716882,1758822652267,-480.0,0.000229,2]
[387716883,1758822652277,-1063.78,0.00022902,2]
[387716884,1758822652287,-480.0,0.00022903,2]
[387716885,1758822652296,-480.0,0.00022903,2]
[387716886,1758822652305,-1387.82,0.00022906,2]
[387716887,1758822652315,-480.0,0.00022906,2]
[387716888,1758822652325,-480.0,0.00022906,2]
[387716889,1758822652335,-3080.89,0.00022906,2]
[387716890,1758822652348,-203.0,0.00022908,2]
[387716891,1758822652357,-168.0,0.00022926,2]
[387716892,1758822652366,-160.0,0.00023,3]
[387716893,1758822652375,-160.0,0.00023,2]
[387716894,1758822652385,-450.0,0.00023014,2]
[387716895,1758822652395,-560.0,0.00023018,2]
[387716896,1758822652404,-166.0,0.00023018,3]
[387716897,1758822652413,-166.0,0.00023018,3]
[387716898,1758822652423,-166.0,0.00023018,3]
[387716899,1758822652432,-172.0,0.00023018,3]
[387716901,1758822652442,-174.0,0.00023018,3]
[387716903,1758822652459,-174.0,0.00023018,3]
[387716905,1758822652468,-162.0,0.00023018,3]
[387716907,1758822652479,-174.0,0.00023018,3]
[387716909,1758822652488,-162.0,0.00023018,3]
[387716911,1758822652497,-174.0,0.00023018,3]
[387716913,1758822652506,-177.81496533,0.00023018,3]
[387716914,1758822652515,-162.0,0.00023018,3]
[387716915,1758822652525,-162.0,0.00023018,3]
[387716916,1758822652534,-162.0,0.00023018,3]
[387716917,1758822652543,-162.0,0.00023018,3]
[387716918,1758822652553,-162.0,0.00023018,3]
[387716920,1758822652563,-151.26263461,0.00023018,3]
[387716922,1758822652572,-162.98096703,0.00023018,3]
[387716924,1758822652583,-2650.20957014,0.00023072,2]
[387716925,1758822652592,-203.0,0.0002316,2]
[387716926,1758822652602,-740.65,0.00023164,2]
[387716927,1758822652611,-480.0,0.00023166,2]
[387716928,1758822652621,-626.16,0.00023166,2]
[387716929,1758822652631,-1245.66,0.00023166,2]
[387716930,1758822652641,-480.0,0.00023166,2]
[387716931,1758822652651,-480.0,0.00023166,2]
[387716932,1758822652661,-171.65350663,0.00023166,2]
[387716933,1758822652671,-480.0,0.00023166,2]
[387716934,1758822652681,-1025.55,0.00023168,2]
[387716935,1758822652690,-506.86,0.00023168,2]
[387716936,1758822652700,-480.0,0.00023168,2]
[387716937,1758822652709,-480.0,0.00023168,2]
[387716938,1758822652718,-1034.09,0.00023168,2]
[387716939,1758822652730,-520.37,0.00023169,2]
[387716940,1758822652739,-974.98,0.00023169,2]
[387716941,1758822652749,-480.0,0.00023174,2]
[387716942,1758822652759,-480.0,0.00023174,2]
[387716943,1758822652769,-1063.78,0.00023176,2]
[387716944,1758822652779,-480.0,0.00023177,2]
[387716945,1758822652788,-405.55,0.00023177,2]
[387716946,1758822652798,-1387.82,0.0002318,2]
[387716947,1758822652807,-480.0,0.0002318,2]
[387716948,1758822652817,-480.0,0.0002318,2]
[387716949,1758822652827,-3080.89,0.0002318,2]
[387716950,1758822652837,-5000.0,0.00023207,2]
[387716951,1758822652847,-502.09635083,0.00023287,2]
[387716952,1758822652856,-151.0,0.00023288,7]
[387716953,1758822652866,-162.534835,0.00023288,7]
[387716954,1758822652875,-203.0,0.00023341,2]
[387716955,1758822652885,-203.0,0.00023392,2]
[387716956,1758822652904,-203.0,0.00023406,2]
[387716957,1758822652916,-203.0,0.00023423,2]
[387716958,1758822652926,-771.3865085,0.0002343,2]
[387716959,1758822652941,-740.65,0.00023438,2]
[387716960,1758822652951,-480.0,0.0002344,2]
[387716961,1758822652960,-626.16,0.0002344,2]
[387716962,1758822652970,-1245.66,0.0002344,2]
[387716963,1758822652982,-480.0,0.0002344,2]
[387716964,1758822652992,-480.0,0.0002344,2]
[387716965,1758822653002,-480.0,0.0002344,2]
[387716966,1758822653012,-1025.55,0.00023442,2]
[387716967,1758822653022,-506.86,0.00023442,2]
[387716968,1758822653032,-480.0,0.00023442,2]
[387716969,1758822653042,-480.0,0.00023442,2]
[387716970,1758822653052,-1034.09,0.00023442,2]
[387716971,1758822653061,-520.37,0.00023443,2]
[387716972,1758822653071,-974.98,0.00023443,2]
[387716973,1758822653081,-480.0,0.00023448,2]
[387716974,1758822653092,-480.0,0.00023448,2]
[387716975,1758822653102,-1063.78,0.0002345,2]
[387716976,1758822653182,-503.67,0.00023451,2]
[387716977,1758822653192,-1387.82,0.00023454,2]
[387716978,1758822653202,-480.0,0.00023454,2]
[387716979,1758822653211,-480.0,0.00023454,2]
[387716980,1758822653220,-203.0,0.00023494,2]
[387716981,1758822653233,-1120.46,0.000235,2]
[387716983,1758822653242,-500.0,0.00023506,2]
[387716984,1758822653251,-664.67256019,0.00023517,2]
[387716985,1758822653261,-300.81962974,0.00023562,2]
[387716987,1758822653271,-660.0,0.00023566,2]
[387716989,1758822653280,-500.0,0.00023599,2]
[387716991,1758822653290,-203.0,0.00023605,2]
[387716993,1758822653299,-203.0,0.00023639,2]
[387716995,1758822653309,-500.0,0.00023686,2]
[387716997,1758822653318,-500.0,0.0002369,2]
[387716999,1758822653328,-740.65,0.00023712,2]
[387717001,1758822653338,-480.0,0.00023713,2]
[387717003,1758822653348,-626.16,0.00023713,2]
[387717005,1758822653359,-480.0,0.00023713,2]
[387717007,1758822653370,-480.0,0.00023713,2]
[387717009,1758822653380,-1245.66,0.00023714,2]
[387717011,1758822653390,-480.0,0.00023714,2]
[387717013,1758822653401,-1025.55,0.00023716,2]
[387717015,1758822653412,-506.86,0.00023716,2]
[387717017,1758822653422,-480.0,0.00023716,2]
[387717019,1758822653432,-480.0,0.00023716,2]
[387717021,1758822653442,-1034.09,0.00023716,2]
[387717023,1758822653452,-520.37,0.00023717,2]
[387717025,1758822653465,-974.98,0.00023717,2]
[387717028,1758822653476,-480.0,0.00023722,2]
[387717029,1758822653486,-480.0,0.00023722,2]
[387717031,1758822653496,-1063.78,0.00023724,2]
[387717033,1758822653506,-1387.82,0.00023728,2]
[387717035,1758822653515,-480.0,0.00023728,2]
[387717037,1758822653525,-480.0,0.00023728,2]
[387717039,1758822653535,-203.0,0.00023889,2]
[387717041,1758822653544,-500.0,0.00023905,2]
[387717043,1758822653554,-500.0,0.00023917,2]
[387717045,1758822653563,-740.65,0.00023986,2]
[387717047,1758822653573,-480.0,0.00023987,2]
[387717049,1758822653582,-626.16,0.00023987,2]
[387717051,1758822653591,-480.0,0.00023987,2]
[387717053,1758822653601,-307.88,0.00023987,2]
[387717055,1758822653611,-1245.66,0.00023988,2]
[387717057,1758822653621,-480.0,0.00023988,2]
[387717059,1758822653631,-1025.55,0.0002399,2]
[387717062,1758822653642,-506.86,0.0002399,2]
[387717064,1758822653652,-480.0,0.0002399,2]
[387717066,1758822653662,-480.0,0.0002399,2]
[387717068,1758822653671,-1034.09,0.0002399,2]
[387717070,1758822653681,-520.37,0.00023991,2]
[387717072,1758822653691,-974.98,0.00023991,2]
[387717074,1758822653700,-151.0,0.00023996,7]
[387717076,1758822653712,-151.0,0.00023996,7]
[387717077,1758822653723,-151.0,0.00023996,7]
[387717079,1758822653738,-480.0,0.00023996,2]
[387717081,1758822653748,-480.0,0.00023996,2]
[387717083,1758822653757,-189.557449,0.00023998,7]
[387717085,1758822653768,-189.557449,0.00023998,7]
[387717087,1758822653778,-189.557449,0.00023998,7]
[387717090,1758822653788,-189.557449,0.00023998,7]
[387717092,1758822653799,-1063.78,0.00023998,2]
[387717094,1758822653808,-151.0,0.00023998,7]
[387717096,1758822653818,-151.0,0.00023998,7]
[387717097,1758822653828,-1387.82,0.00024002,2]
[387717100,1758822653838,-185.49,0.00024002,2]
[387717102,1758822653848,-480.0,0.00024002,2]
[387717104,1758822653858,-203.0,0.00024041,2]
[387717106,1758822653868,-204.54044943,0.00024045,3]
[387717108,1758822653877,-156.0,0.00024045,3]
[387717110,1758822653892,-156.0,0.00024045,3]
[387717112,1758822653902,-156.0,0.00024045,3]
[387717114,1758822653912,-156.0,0.00024045,3]
[387717116,1758822653920,-328.0,0.00024045,3]
[387717118,1758822653930,-328.0,0.00024045,3]
[387717120,1758822653940,-328.0,0.00024045,3]
[387717122,1758822653949,-328.0,0.00024045,3]
[387717124,1758822653958,-328.0,0.00024045,3]
[387717126,1758822653969,-328.0,0.00024045,3]
[387717127,1758822653981,-328.0,0.00024045,3]
[387717129,1758822653991,-328.0,0.00024045,3]
[387717131,1758822654000,-328.0,0.00024045,3]
[387717133,1758822654010,-328.0,0.00024045,3]
[387717136,1758822654020,-328.0,0.00024045,3]
[387717138,1758822654030,-328.0,0.00024045,3]
[387717140,1758822654039,-328.0,0.00024045,3]
[387717142,1758822654048,-328.0,0.00024045,3]
[387717144,1758822654058,-328.0,0.00024045,3]
[387717146,1758822654068,-328.0,0.00024045,3]
[387717148,1758822654077,-328.0,0.00024045,3]
[387717150,1758822654087,-379.08033987,0.00024045,3]
[387717152,1758822654098,-328.0,0.00024045,3]
[387717154,1758822654108,-328.0,0.00024045,3]
[387717156,1758822654117,-328.0,0.00024045,3]
[387717158,1758822654127,-328.0,0.00024045,3]
[387717160,1758822654137,-328.0,0.00024045,3]
[387717162,1758822654146,-328.0,0.00024045,3]
[387717164,1758822654156,-328.0,0.00024045,3]
[387717166,1758822654165,-328.0,0.00024045,3]
[387717168,1758822654175,-328.0,0.00024052,3]
[387717170,1758822654184,-328.0,0.00024052,3]
[387717172,1758822654193,-328.0,0.00024052,3]
[387717174,1758822654202,-328.0,0.00024052,3]
[387717176,1758822654211,-203.0,0.00024053,2]
[387717178,1758822654220,-203.0,0.00024054,2]
[387717180,1758822654231,-200.0,0.00024109,2]
[387717182,1758822654241,-200.0,0.00024109,2]
[387717184,1758822654250,-200.0,0.00024109,2]
[387717186,1758822654259,-200.0,0.00024109,2]
[387717188,1758822654268,-293.71008046,0.00024109,2]
[387717190,1758822654277,-151.0,0.0002414,7]
[387717192,1758822654287,-151.0,0.0002414,7]
[387717194,1758822654296,-151.0,0.0002414,7]
[387717196,1758822654306,-151.0,0.0002414,7]
[387717198,1758822654315,-151.0,0.0002414,7]
[387717200,1758822654324,-151.0,0.0002414,7]
[387717202,1758822654333,-203.0,0.0002414,2]
[387717204,1758822654342,-500.0,0.00024252,2]
[387717206,1758822654352,-740.65,0.0002426,2]
[387717208,1758822654361,-480.0,0.00024261,2]
[387717210,1758822654371,-626.16,0.00024261,2]
[387717211,1758822654380,-480.0,0.00024261,2]
[387717214,1758822654390,-1245.66,0.00024262,2]
[387717216,1758822654399,-480.0,0.00024262,2]
[387717218,1758822654409,-1025.55,0.00024264,2]
[387717220,1758822654418,-506.86,0.00024264,2]
[387717222,1758822654427,-480.0,0.00024264,2]
[387717224,1758822654437,-1034.09,0.00024264,2]
[387717226,1758822654447,-520.37,0.00024265,2]
[387717228,1758822654456,-974.98,0.00024265,2]
[387717230,1758822654466,-480.0,0.0002427,2]
[387717232,1758822654475,-387.74,0.0002427,2]
[387717234,1758822654487,-1063.78,0.00024272,2]
[387717236,1758822654498,-1387.82,0.00024276,2]
[387717238,1758822654510,-480.0,0.00024276,2]
[387717240,1758822654520,-4000.0,0.00024301,4]
[387717242,1758822654529,-223.920258,0.00024313,7]
[387717244,1758822654538,-151.0,0.00024313,7]
[387717246,1758822654547,-151.0,0.00024313,7]
[387717248,1758822654557,-151.0,0.00024313,7]
[387717249,1758822654566,-151.0,0.00024313,7]
[387717251,1758822654576,-151.0,0.00024313,7]
[387717253,1758822654586,-172.1195951,0.00024348,2]
[387717255,1758822654596,-203.0,0.00024441,2]
[387717257,1758822654605,-819.993,0.00024445,7]
[387717259,1758822654614,-150.0,0.00024467,2]
[387717261,1758822654624,-500.0,0.00024508,2]
[387717263,1758822654634,-740.65,0.00024534,2]
[387717265,1758822654644,-480.0,0.00024535,2]
[387717267,1758822654653,-626.16,0.00024535,2]
[387717269,1758822654663,-339.35,0.00024535,2]
[387717271,1758822654673,-495.838101,0.00024535,7]
[387717273,1758822654683,-151.0,0.00024535,7]
[387717275,1758822654693,-495.838101,0.00024535,7]
[387717277,1758822654702,-495.838101,0.00024535,7]
[387717280,1758822654712,-495.83809841,0.00024535,7]
[387717282,1758822654722,-409.663832,0.00024535,7]
[387717284,1758822654734,-409.663832,0.00024535,7]
[387717286,1758822654744,-409.663832,0.00024535,7]
[387717288,1758822654753,-409.663833,0.00024535,7]
[387717290,1758822654763,-151.0,0.00024535,7]
[387717298,1758822654773,-1245.66,0.00024536,2]
[387717301,1758822654854,-534.23,0.00024536,2]
[387717303,1758822654864,-1025.55,0.00024538,2]
[387717305,1758822654873,-506.86,0.00024538,2]
[387717307,1758822654883,-480.0,0.00024538,2]
[387717309,1758822654894,-1034.09,0.00024538,2]
[387717311,1758822654904,-520.37,0.00024539,2]
[387717313,1758822654913,-974.98,0.00024539,2]
[387717315,1758822654922,-480.0,0.00024544,2]
[387717317,1758822654932,-151.0,0.00024546,7]
[387717319,1758822654941,-263.76202,0.00024546,7]
[387717321,1758822654951,-213.92,0.00024546,7]
[387717323,1758822654961,-1063.78,0.00024546,2]
[387717325,1758822654971,-1387.82,0.0002455,2]
[387717327,1758822654982,-480.0,0.0002455,2]
[387717329,1758822654992,-160.0,0.000246,7]
[387717331,1758822655002,-203.0,0.00024669,2]
[387717333,1758822655012,-151.0,0.000248,7]
[387717335,1758822655023,-164.582456,0.000248,7]
[387717337,1758822655034,-151.0,0.000248,7]
[387717339,1758822655044,-4872.94909938,0.000248,2]
[387717341,1758822655054,-151.0,0.000248,7]
[387717343,1758822655065,-192.613124,0.000248,7]
[387717345,1758822655075,-192.613124,0.000248,7]
[387717347,1758822655084,-192.613124,0.000248,7]
[387717349,1758822655094,-192.613127,0.000248,7]
[387717351,1758822655106,-740.65,0.00024808,2]
[387717353,1758822655115,-480.0,0.00024809,2]
[387717355,1758822655125,-626.16,0.00024809,2]
[387717357,1758822655135,-1245.66,0.0002481,2]
[387717359,1758822655144,-1025.55,0.00024812,2]
[387717361,1758822655154,-506.86,0.00024812,2]
[387717363,1758822655163,-480.0,0.00024812,2]
[387717365,1758822655173,-1034.09,0.00024812,2]
[387717367,1758822655183,-520.37,0.00024813,2]
[387717369,1758822655192,-974.98,0.00024813,2]
[387717371,1758822655201,-480.0,0.00024818,2]
[387717373,1758822655211,-1063.78,0.0002482,2]
[387717375,1758822655219,-1387.82,0.00024824,2]
[387717377,1758822655233,-480.0,0.00024824,2]
[387717379,1758822655242,-151.0,0.00024898,7]
[387717381,1758822655251,-151.0,0.00024898,7]
[387717383,1758822655261,-151.83079,0.000249,7]
[387717385,1758822655270,-151.0,0.000249,7]